Cogmind - Beta 15 @@@ ROGUE MODE // 2025.06.03 @ 19:26:39 // Winter2019/RPGLIKE Player: Jack Result: Destroyed by G-47 Trooper with Particle Gun Performance ------------- Evolutions (2) 1000 Regions Visited (3) 600 Robots Destroyed (30) 150 Value Destroyed (688) 688 Prototype IDs (0) 0 Alien Tech Used (0) 0 Bonus (22) 22 TOTAL SCORE: 2460 Bonus ------- High Alert Combat Kills 22 Cogmind --------- Core Integrity 0/600 Matter 234/300 Energy 125/125 System Corruption 0% Temperature Critical (521) Movement Flying (37) Location -8/Materials Parts ------- > --- POWER (1) -------- Light Ion Engine > --- PROPULSION (2) --- Flight Unit Flight Unit > --- UTILITY (1) ------ (None) > --- WEAPON (4) ------- Assault Rifle Heavy Assault Rifle Heavy Assault Rifle Heavy Assault Rifle > --- INVENTORY (0) ---- (None) Peak State ------------ > --- POWER ------------ Light Ion Engine > --- PROPULSION ------- Flight Unit Flight Unit > --- UTILITY ---------- (None) > --- WEAPON ----------- Assault Rifle Heavy Assault Rifle Heavy Assault Rifle Heavy Assault Rifle > --- INVENTORY -------- (None) [Rating: 10] Favorites ----------- Power Light Ion Engine Engine Light Ion Engine Propulsion Flight Unit Flight Unit Flight Unit Utility None Weapon Light Assault Rifle Ballistic Gun Light Assault Rifle Build | -11 -10 -9 -8 ------- Run | Yrd Mat Mat Mat Slots Evolved 4 | 4 . . . Power . | . . . . Propulsion 1 | 1 . . . Utility . | . . . . Weapon 3 | 3 . . . Parts Attached 10 | 2 4 4 . Power 1 | . 1 . . Engine 1 | . 1 . . Core . | . . . . Reactor . | . . . . Propulsion 2 | . 1 1 . Treads . | . . . . Leg . | . . . . Wheel . | . . . . Hover . | . . . . Flight 2 | . 1 1 . Utility . | . . . . Device . | . . . . Storage . | . . . . Processor . | . . . . Hackware . | . . . . Protection . | . . . . Artifact . | . . . . Weapon 7 | 2 2 3 . Energy Gun . | . . . . Energy Cannon . | . . . . Ballistic Gun 7 | 2 2 3 . Ballistic Cannon . | . . . . Launcher . | . . . . Special Weapon . | . . . . Impact Weapon . | . . . . Slashing Weapon . | . . . . Piercing Weapon . | . . . . Special Melee Weapon . | . . . . Unidentified Prototypes . | . . . . Parts Lost . | . . . . Power . | . . . . Propulsion . | . . . . Utility . | . . . . Weapon . | . . . . Highest Loss Streak . | . . . . To Critical Strikes . | . . . . Average Backups . | . . . . Power . | . . . . Propulsion . | . . . . Utility . | . . . . Weapon . | . . . . Tool/Special . | . . . . Unused Backups . | . . . . Power . | . . . . Propulsion . | . . . . Utility . | . . . . Weapon . | . . . . Tool/Special . | . . . . Average Slot Usage (%) 75 | . 53 80 87 Engine 10 | . 4 12 12 Flight 16 | . 5 17 25 Ballistic Gun 48 | . 43 50 50 Peak Build Rating 10 | 2 6 10 10 Average Rating 7 | . 4 7 10 On Entrance 4 | . 2 6 10 Naked Turns . | . . . . Heaviest Build 14 | 3 8 14 14 Greatest Support 18 | 3 9 18 18 Greatest Overweight (x) . | . . . . Average Overweight (x) . | . . . . Largest Inventory Capacity . | . . . . Average Capacity . | . . . . Most Carried . | . . . . Average Carried . | . . . . Final Capacity . | . . . . Final Carried . | . . . . Class Distribution -------------------- 85% | Scavenger-Gunner 8% | Mutant 6% | Gunner Dominant Class ---------------- Scavenger-Gunner | -10/Materials Scavenger-Gunner | -9/Materials Scavenger-Gunner | -8/Materials Resources | -11 -10 -9 -8 ----------- Run | Yrd Mat Mat Mat Matter Collected 807 | 220 115 313 159 Remotely . | . . . . Salvage Created 829 | . 123 551 155 Parts 60 | . 12 40 8 Haulers Intercepted . | . . . . Recyclers Shooed . | . . . . Parts Field Recycled . | . . . . Retrieved Matter . | . . . . Parts Self-Destructed . | . . . . Prevented . | . . . . Kills | -11 -10 -9 -8 ------- Run | Yrd Mat Mat Mat Combat Hostiles Destroyed 26 | . 7 17 2 Guns 24 | . 7 15 2 AOE 2 | . . 2 . Classes Destroyed 7 | . 3 4 . Worker 1 | . . 1 . Builder 1 | . . 1 . Recycler 1 | . 1 . . Watcher 1 | . . 1 . Swarmer 14 | . 6 8 . Grunt 6 | . 1 4 1 Sentry 6 | . . 5 1 Best Kill Streak 7 | . 5 7 1 Combat Bots Only 5 | . 3 5 1 Max Kills in Single Turn 2 | . 2 2 1 Gunslinging 1 | . 1 . . Exploded 2 | . . 2 . Melee . | . . . . Uniques/NPCs Destroyed . | . . . . Combat | -11 -10 -9 -8 -------- Run | Yrd Mat Mat Mat Hostile Shots Fired 142 | . 23 69 50 Missed 54 | . 8 27 19 Hits 88 | . 15 42 31 Projectile 88 | . 15 42 31 AOE 1 | . . . 1 Critical Strikes 5 | . . . 5 Damage Taken 1223 | . 134 566 523 Core 981 | . 116 446 419 Absorbed by Shields . | . . . . Redirected to Core 811 | . 53 401 357 Core Remaining (%) 89 | 100 100 69 . Volleys Fired 63 | . 14 39 10 Largest 4 | . 4 4 4 Hottest 89 | . 80 86 89 Shots Fired 245 | . 50 156 39 Gun 245 | . 50 156 39 Cannon . | . . . . Launcher . | . . . . Special . | . . . . Kinetic 245 | . 50 156 39 Thermal . | . . . . Explosive . | . . . . Electromagnetic . | . . . . Robot Hit Streak 13 | . 8 13 9 Robot Miss Streak 7 | . 3 7 4 Penetration Max . | . . . . Secondary Targets 6 | . 2 3 1 Max Gunslinging Chain 1 | . 1 1 1 Shots Hit Robots 128 | . 30 78 20 Core Hits 57 | . 13 33 11 Critical Kills . | . . . . Critical Parts Destroyed 1 | . . 1 . Critical Strikes 1 | . . 1 . Destroy 1 | . . 1 . Melee Attacks . | . . . . Impact . | . . . . Slashing . | . . . . Piercing . | . . . . Sneak Attacks . | . . . . Combat Hostiles . | . . . . Follow-up Attacks . | . . . . Damage Inflicted 1767 | . 272 1131 364 Guns 1503 | . 272 867 364 Cannons . | . . . . Explosions 264 | . . 264 . Melee . | . . . . Ramming . | . . . . Kinetic 1503 | . 272 867 364 Thermal . | . . . . Explosive 264 | . . 264 . Electromagnetic . | . . . . Impact . | . . . . Slashing . | . . . . Piercing . | . . . . Highest Corruption . | . . . . Average Corruption . | . . . . Corruption Purged . | . . . . Corruption Blocked . | . . . . Overload Shots . | . . . . Overflow Damage 123 | . . 123 . Projectiles . | . . . . Explosions 123 | . . 123 . Melee . | . . . . Knockbacks . | . . . . Impact . | . . . . Kinetic . | . . . . Secondary . | . . . . Self-Inflicted Damage 114 | . . 114 . Shots 1 | . . 1 . Rammed . | . . . . Targets Rammed . | . . . . Kicked . | . . . . Crushed . | . . . . Highest Temperature 494 | . 118 242 494 Average Temperature 92 | . 53 76 221 Received Heat Transfer 513 | . 36 96 381 Effects 4 | . . . 4 Shutdowns 1 | . . . 1 Matter Decay 1 | . . . 1 Short Circuit 1 | . . . 1 Damage (minor) 1 | . . . 1 Siege Activations . | . . . . Martial Activations . | . . . . Shielding Activations . | . . . . Robots Disrupted . | . . . . Combat Hostiles . | . . . . Robots Corrupted . | . . . . Combat Hostiles . | . . . . Parts Fried . | . . . . Impact Corruptions . | . . . . Robots Melted . | . . . . Combat Hostiles . | . . . . Parts Melted . | . . . . Heat Transferred . | . . . . Parts Sabotaged . | . . . . Parts Stolen . | . . . . Parts Stripped . | . . . . Power Chain Reactions . | . . . . Alert | -11 -10 -9 -8 ------- Run | Yrd Mat Mat Mat Maximum Alert Level 2 | . . 2 1 Low Security (%) 62 | 100 100 53 40 Level 1 24 | . . 26 60 Level 2 12 | . . 20 . Level 3 . | . . . . Level 4 . | . . . . Level 5 . | . . . . High Security . | . . . . Max Security . | . . . . Peak Influence 465 | . 125 465 215 Initial 185 | . . 48 185 Average 177 | . 63 220 200 Influence Increases 778 | . 165 563 50 Destroy 0b10 Robot/C 520 | . 140 340 40 Destroy 0b10 Robot/NC 20 | . 5 15 . Destroy Leader 112 | . 20 82 10 Successful Hack 6 | . . 6 . Disable Machine 30 | . . 30 . Destroy Structure 45 | . . 45 . Partial Spotted 15 | . . 15 . Lose Combat Pursuer 30 | . . 30 . Influence Decreases 573 | . 50 237 286 Entered New Map 323 | . . 67 256 Time Decay 250 | . 50 170 30 Squads Dispatched 3 | . . 2 1 Investigation 1 | . . 1 . Extermination . | . . . . Reinforcement 2 | . . 1 1 Assault . | . . . . Garrison . | . . . . Intercept . | . . . . Searches Triggered . | . . . . Construction Impeded . | . . . . Haulers Reinforced . | . . . . Active Scanning Responses . | . . . . Cargo Convoy Interrupts . | . . . . Stealth | -11 -10 -9 -8 --------- Run | Yrd Mat Mat Mat Distress Signals 3 | . . 2 1 Communications Jammed . | . . . . Distress Signals . | . . . . Times Spotted 47 | . 7 26 14 Peak Tracking Total 9 | . 4 8 9 Tactical Retreats 2 | . . 2 . Traps | -11 -10 -9 -8 ------- Run | Yrd Mat Mat Mat Traps Triggered 1 | . . 1 . Indirectly . | . . . . Trap Hack Attempts . | . . . . Triggered . | . . . . Disarmed . | . . . . Reprogrammed . | . . . . Reused . | . . . . Traps Extracted . | . . . . Installed . | . . . . Triggered . | . . . . Machines | -11 -10 -9 -8 ---------- Run | Yrd Mat Mat Mat Machines Disabled 2 | . . 2 . Max in Single Turn 1 | . . 1 . Machines Repaired . | . . . . Machines Dismantled . | . . . . Machines Sabotaged . | . . . . Overloaded Fab Kills . | . . . . Hacking | -11 -10 -9 -8 --------- Run | Yrd Mat Mat Mat Machines Accessed 2 | . . 2 . Terminals 2 | . . 2 . Fabricators . | . . . . Repair Stations . | . . . . Recycling Units . | . . . . Scanalyzers . | . . . . Garrison Access . | . . . . Total Hacks 7 | . . 7 . Successful 1 | . . 1 . Failed 6 | . . 6 . Catastrophic . | . . . . Database Lockouts . | . . . . Manual 7 | . . 7 . Terminals 7 | . . 7 . Fabricators . | . . . . Repair Stations . | . . . . Recycling Units . | . . . . Scanalyzers . | . . . . Garrison Access . | . . . . Terminal Hacks 1 | . . 1 . Branch Access Points 1 | . . 1 . Fabricator Hacks . | . . . . Repair Station Hacks . | . . . . Recycling Unit Hacks . | . . . . Scanalyzer . | . . . . Garrison Access Hacks . | . . . . Unauthorized Hacks . | . . . . Terminals . | . . . . Fabricators . | . . . . Repair Stations . | . . . . Recycling Units . | . . . . Scanalyzers . | . . . . Garrison Access . | . . . . Data Cores Recovered . | . . . . Used . | . . . . Hacking Detections 2 | . . 2 . Full Trace Events 1 | . . 1 . Feedback Events . | . . . . Feedback Blocked . | . . . . Robot Schematics Acquired . | . . . . Robots Built . | . . . . Authchips . | . . . . Time . | . . . . Total Robot Build Rating . | . . . . Part Schematics Acquired . | . . . . Parts Built . | . . . . Authchips . | . . . . Time . | . . . . Total Part Build Rating . | . . . . Parts Repaired . | . . . . Time . | . . . . Parts Recycled . | . . . . Recycled Matter . | . . . . Retrieved Matter . | . . . . Retrieved Components . | . . . . Parts Scanalyzed . | . . . . Part Schematics Acquired . | . . . . Parts Damaged . | . . . . Bothacking | -11 -10 -9 -8 ------------ Run | Yrd Mat Mat Mat Used RIF Installer . | . . . . Robots Hacked . | . . . . Non-combat . | . . . . Combat . | . . . . Robot Hacks Applied . | . . . . Relay Couplers Released . | . . . . Fabnet Peak Effective % . | . . . . Robots Rewired . | . . . . Allies Hacked . | . . . . Hacks Repelled . | . . . . Allies | -11 -10 -9 -8 -------- Run | Yrd Mat Mat Mat Total Allies . | . . . . Largest Group . | . . . . Highest-Rated Group . | . . . . Highest-Rated Ally . | . . . . Total Orders . | . . . . Ally Attacks . | . . . . Total Damage . | . . . . Kills . | . . . . Allies Corrupted . | . . . . Allies Melted . | . . . . Intel | -11 -10 -9 -8 ------- Run | Yrd Mat Mat Mat Active Infowar (turns) . | . . . . Robot Analysis Total . | . . . . Derelict Logs Recovered . | . . . . Drone Launches . | . . . . Drone Recoveries . | . . . . Exploration | -11 -10 -9 -8 ------------- Run | Yrd Mat Mat Mat Turns Passed 547 | 29 100 343 75 Spaces Moved 637 | 50 90 407 90 Core 86 | 50 36 . . Treads . | . . . . Legs . | . . . . Wheels . | . . . . Hover . | . . . . Flight 551 | . 54 407 90 Fastest Speed 37 | 50 40 37 37 Average Speed 39 | 50 44 38 37 Slowest Speed 50 | 50 50 40 37 Overloaded Moves . | . . . . Propulsion Burnouts . | . . . . Robots Hopped 11 | . 2 6 3 Potential Cave-ins . | . . . . Cave-ins Triggered . | . . . . Exploration Rate (%) 19 | 3 20 37 19 Regions Visited 3 Branch Regions . Pre-discovered Areas . | . . . . Known Exits Taken . | . . . . Unknown Exits Taken 3 | 1 1 1 . Scrap Searched . | . . . . Spaces Dug . | . . . . Terrain Destroyed 51 | . . 51 . Melee . | . . . . Projectile . | . . . . AOE 51 | . . 51 . Terrain Rammed . | . . . . Walls Destroyed . | . . . . Machines Disabled . | . . . . Actions | -11 -10 -9 -8 --------- Run | Yrd Mat Mat Mat Total 779 | 52 119 502 106 Wait 51 | 1 4 37 9 Move 613 | 49 85 394 85 Hop 10 | . 2 6 2 Pick Up . | . . . . Fast Attach 11 | 2 4 5 . Attach . | . . . . Detach . | . . . . Swap . | . . . . Drop 4 | . . 4 . Fire 63 | . 14 39 10 Melee . | . . . . Ram . | . . . . Kick . | . . . . Crush . | . . . . Escape Stasis . | . . . . Rewire . | . . . . Trap . | . . . . Miscellaneous 27 | . 10 17 . Route ------- -11/Scrapyard -10/Materials -9/Materials (discovered 3 exits: *Mat / *Min x2) -8/Materials History --------- Turn | Location | Event 10 | -11/Scrapyard | Discovered new exit (range 14) 16 | -11/Scrapyard | Upgraded with Propulsion slot (x1) 16 | -11/Scrapyard | Upgraded with Weapon slot (x3) 30 | -11/Scrapyard | Entered Materials 99 | -10/Materials | Discovered new exit (range 14) 130 | -10/Materials | Entered another Materials area 132 | -9/Materials | Reached level 2 243 | -9/Materials | Reached level 3 267 | -9/Materials | Discovered new exit (range 9) 387 | -9/Materials | Build established: Scavenger-Gunner 426 | -9/Materials | Core integrity fell below 50% 426 | -9/Materials | Reached level 4 436 | -9/Materials | Discovered new exit (range 10) 455 | -9/Materials | Identified exit to Mines 473 | -9/Materials | Entered another Materials area 475 | -8/Materials | Reached level 5 530 | -8/Materials | Core integrity fell below 50% 542 | -8/Materials | Core integrity fell below 20% 548 | -8/Materials | Destroyed by G-47 Trooper with Particle Gun Last Messages --------------- T-07 Excavator destroyed. Fusion Modulator explodes. G-47 Trooper destroyed. K-01 Serf collects debris. U-05 Engineer lays Concrete. A-02 Transporter destroyed. K-01 Serf collects debris. U-05 Engineer lays Concrete. K-01 Serf collects debris. U-05 Engineer lays Concrete. Power failure, Lgt. Ion Engine shutdown. Overheating: Lgt. Ion Engine damaged (-1). U-05 Engineer lays Concrete. Critical hit (Burn: +37). R-06 Scavenger collects Lgt. Treads. U-05 Engineer lays Concrete. Assault Rifle broken. Overheating: Short circuit. Destroyed Imp. Heat Sink. U-05 Engineer lays Concrete. Map ----- +----------------------------------------------------+ | ?????????????????????????????????????????????????? | | ?????????????????????????????????????????????????? | | ?????????????????????????????????????????????????? | | ?????????????????????????????????????????????????? | | ?????????????????????????????????????????????????? | | ?????????????????????????????????????????????????? | | ?????????????????????????????????????????????????? | | ?????????????????????????????????????????????????? | | ?????????????????????????????????????????????????? | | ?????????????????????????????????????????????????? | | ???????????????????????#####?????????????????????? | | ?????????????????????## ##???????????????????? | | ?????????????????????# ;;;;;;;###????????????????? | | ????????????????????? ; #????????????????? | | ????????????????????? ; #????????????????? | | ?????????????????????# ; #????????????????? | | ????????????????????? = !#????????????????? | | ????????????????????## | ##???????????????? | | ????????????????????# = ;#???????????????? | | ????????????????????? %= [;#???????????????? | | ?????????????????????# *%%==;#???????????????? | | ?????????????????????? ;g % %!%=;#???????????????? | | ?????????? ##########;;;;;g;;;####?????????????? | | ?????????# g a = u #?????????????? | | ?????????# r [[[ % u #?????????????? | | ????????? g k =%[* @ #?????????????? | | ???????????? ############ #?????????????? | | ????????????????????????# a k [#?????????????? | | ????????????????????????#"" < #?????????????? | | ??????????????????? ????#"T << #??########???? | | ??????????????????!* #""ga<< #??# "T" #???? | | ?????????????????!!* + w o #??# #???? | | ???????????????? !** # #??# #???? | | ????????????????? ######## #??# =] #???? | | ????????????????? ????????#a #??# ]!==##??? | | ??????????????????? ???????????# #??# ![%* #??? | | ???????????????????????????????# #######/####### | | ?????????????????????????? R" # | | ?????????????????????????? """ / | | ????????????????????????# # """ | | ????????????????????????# ! # #### """"" | | ????????????????????????# ?# #??# """"" | | ????????????????????????# ?# #??# """"" | | ????????????????????????##+##??# #??# """ | | ??????????????????????????????? #??# | | ?????????????????????????????? #??# # | | ????????????????????????????? #??# """ # | | ?????????????????????????????#######??# """"" # | | ??????????????????????????????????????# """"" # | | ??????????????????????????????????????# """"" # | +----------------------------------------------------+ Best States ------------- Heat Dissipation 25 Energy Generation 10 Energy Capacity 125 Matter Stores 300 Matter Capacity 300 Sight Range 16 Terrain Scan Density 10 Evasion (%) 62 Offensive Hacking 20 Item Schematics ----------------- None Robot Schematics ------------------ None Fabricated ------------ Nothing Repaired ---------- Nothing Alien Tech Used ----------------- None Achievements -------------- None Challenges ------------ None RPGLIKE | -11 -10 -9 -8 --------- Run | Yrd Mat Mat Mat Levels Raised 4 | . . 3 1 XP Earned 9340 | 3000 800 3790 1750 XP Spent 5600 | 2900 100 2600 . Upgrades 10 | 4 1 5 . Propulsion Slot 1 | 1 . . . Weapon Slot 3 | 3 . . . Mass Support 2 | . 1 1 . Hack Attack % 4 | . . 4 . Protomatter Created 228 | . 97 131 . Integrity Restored 504 | . 173 331 . Core 380 | . 116 264 . Parts 124 | . 57 67 . Protomatter Decayed 37 | . 17 20 . Game ------ Seed GrenadeImpulseMatter Manual? 0 Play Time 00:07:28 Cumulative 245.9 hours Start 2025.06.03 @ 19:20:22 End 2025.06.03 @ 19:26:39 Sessions 1 Manual Loads 0 Difficulty Rogue Special Mode Winter2019/RPGLIKE Game No. 245 Rogue 56 Adventurer 177 Explorer 12 Win Type - Total 63 Types 18/1/16/2/12/0/4/5/0/5 Lore% 54 Gallery% 52 Achievement% 69 Wizard Run 0 Options --------- Layout 0 ASCII 0 Keyboard 0 Movement Numpad Keybinds 0 Fullscreen 2 Font 12/Smallcaps Map View 83x54 Zoom Use 0% Tactical HUD 0 Map Filters NONE Filters NONE Steam 1 RUN: 5629dab2-a95f-47aa-a353-d034f073a79a